fUSD/lending_fUSD_20250215
["ID","MTS","AMOUNT","RATE_DAILY","PERIOD"]
[353195234,1739640660598,-500.0,0.00012273,2]
[353195235,1739640660607,-500.0,0.00012273,2]
[353195236,1739640660617,-500.0,0.00012273,2]
[353195237,1739640660627,-500.0,0.00012273,2]
[353195238,1739640660638,-500.0,0.00012273,2]
[353195239,1739640660650,-500.0,0.00012273,2]
[353195240,1739640660661,-571.48,0.00012286,2]
[353195241,1739640660670,-512.53,0.00012286,2]
[353195242,1739640660680,-500.0,0.00012286,2]
[353195243,1739640660690,-844.08,0.00012286,2]
[353195244,1739640660700,-678.77,0.00012286,2]
[353195245,1739640660710,-578.69,0.00012286,2]
[353195246,1739640660719,-836.8,0.00012286,2]
[353195247,1739640660728,-502.58,0.00012286,2]
[353195248,1739640660738,-500.0,0.00012286,2]
[353195249,1739640660749,-830.02,0.00012286,2]
[353195250,1739640660759,-932.26,0.00012286,2]
[353195251,1739640660768,-651.91,0.00012286,2]
[353195252,1739640660779,-521.69,0.00012286,2]
[353195253,1739640660788,-2314.63,0.00012286,2]
[353195254,1739640660797,-500.0,0.00012286,2]
[353195255,1739640660806,-500.0,0.00012286,2]
[353195256,1739640660816,-1694.07,0.00012286,2]
[353195257,1739640660825,-500.0,0.00012286,2]
[353195258,1739640660834,-805.43,0.00012286,2]
[353195259,1739640660843,-216.0,0.0001229,2]
[353195260,1739640660853,-151.0,0.00012329,2]
[353195261,1739640660862,-151.0,0.00012329,2]
[353195262,1739640660871,-151.0,0.00012329,2]
[353195263,1739640660880,-151.0,0.00012329,2]
[353195264,1739640660890,-151.0,0.00012329,2]
[353195265,1739640660899,-151.0,0.00012329,2]
[353195266,1739640660908,-151.0,0.00012329,2]
[353195267,1739640660917,-151.0,0.00012329,2]
[353195268,1739640660926,-151.0,0.00012329,2]
[353195269,1739640660935,-151.0,0.00012329,2]
[353195270,1739640660944,-151.0,0.00012329,2]
[353195271,1739640660953,-163.772472,0.00012329,2]
[353195272,1739640660962,-297.43374,0.00012329,2]
[353195273,1739640660972,-151.0,0.00012329,2]
[353195274,1739640660981,-151.0,0.00012329,2]
[353195275,1739640660991,-151.0,0.00012329,2]
[353195276,1739640661000,-151.0,0.00012329,2]
[353195277,1739640661010,-151.0,0.00012329,2]
[353195278,1739640661020,-151.0,0.00012329,2]
[353195279,1739640661029,-151.0,0.00012329,2]
[353195280,1739640661039,-151.0,0.00012329,2]
[353195281,1739640661048,-151.0,0.00012329,2]
[353195282,1739640661057,-151.0,0.00012329,2]
[353195283,1739640661067,-151.0,0.00012329,2]
[353195284,1739640661076,-151.0,0.00012329,2]
[353195285,1739640661085,-151.0,0.00012329,2]
[353195286,1739640661094,-151.0,0.00012329,2]
[353195287,1739640661103,-151.0,0.00012329,2]
[353195288,1739640661112,-151.0,0.00012329,2]
[353195289,1739640661122,-151.0,0.00012329,2]
[353195290,1739640661131,-151.0,0.00012329,2]
[353195291,1739640661143,-151.0,0.00012329,2]
[353195292,1739640661152,-151.0,0.00012329,2]
[353195293,1739640661162,-151.0,0.00012329,2]
[353195294,1739640661171,-151.0,0.00012329,2]
[353195295,1739640661181,-151.0,0.00012329,2]
[353195296,1739640661191,-151.0,0.00012329,2]
[353195297,1739640661201,-151.0,0.00012329,2]
[353195298,1739640661211,-151.0,0.00012329,2]
[353195299,1739640661221,-151.0,0.00012329,2]
[353195300,1739640661230,-151.0,0.00012329,2]
[353195301,1739640661239,-151.0,0.00012329,2]
[353195302,1739640661249,-151.0,0.00012329,2]
[353195303,1739640661258,-244.92479,0.00012329,2]
[353195304,1739640661267,-650.627423,0.00012329,2]
[353195305,1739640661276,-650.627423,0.00012329,2]
[353195306,1739640661286,-650.627423,0.00012329,2]
[353195307,1739640661294,-650.627423,0.00012329,2]
[353195308,1739640661303,-650.627423,0.00012329,2]
[353195309,1739640661312,-650.627423,0.00012329,2]
[353195310,1739640661321,-650.627423,0.00012329,2]
[353195311,1739640661330,-650.627423,0.00012329,2]
[353195312,1739640661339,-650.627423,0.00012329,2]
[353195313,1739640661348,-650.627423,0.00012329,2]
[353195314,1739640661358,-650.627423,0.00012329,2]
[353195315,1739640661367,-650.62743,0.00012329,2]
[353195316,1739640661376,-151.0,0.00012329,2]
[353195317,1739640661385,-151.0,0.00012329,2]
[353195318,1739640661394,-151.0,0.00012329,2]
[353195319,1739640661403,-151.0,0.00012329,2]
[353195320,1739640661413,-151.0,0.00012329,2]
[353195321,1739640661422,-151.0,0.00012329,2]
[353195322,1739640661431,-151.0,0.00012329,2]
[353195323,1739640661441,-151.0,0.00012329,2]
[353195324,1739640661450,-198.34868,0.00012329,2]
[353195325,1739640661459,-151.0,0.00012329,2]
[353195326,1739640661468,-160.916331,0.00012329,2]
[353195327,1739640661476,-151.0,0.00012329,2]
[353195328,1739640661485,-151.0,0.00012329,2]
[353195329,1739640661495,-151.0,0.00012329,2]
[353195330,1739640661504,-151.0,0.00012329,2]
[353195331,1739640661512,-151.0,0.00012329,2]
[353195332,1739640661521,-151.0,0.00012329,2]
[353195333,1739640661530,-154.414108,0.00012329,2]
[353195334,1739640661539,-154.414108,0.00012329,2]
[353195335,1739640661548,-154.414108,0.00012329,2]
[353195336,1739640661557,-154.414108,0.00012329,2]
[353195337,1739640661566,-154.414108,0.00012329,2]
[353195338,1739640661575,-154.414108,0.00012329,2]
[353195339,1739640661585,-154.414108,0.00012329,2]
[353195340,1739640661594,-154.414108,0.00012329,2]
[353195341,1739640661603,-154.414108,0.00012329,2]
[353195342,1739640661614,-154.414108,0.00012329,2]
[353195343,1739640661623,-154.414108,0.00012329,2]
[353195344,1739640661632,-154.414108,0.00012329,2]
[353195345,1739640661641,-154.414108,0.00012329,2]
[353195346,1739640661650,-154.414108,0.00012329,2]
[353195347,1739640661659,-154.414108,0.00012329,2]
[353195348,1739640661668,-154.414108,0.00012329,2]
[353195349,1739640661677,-154.414108,0.00012329,2]
[353195350,1739640661687,-154.414108,0.00012329,2]
[353195351,1739640661696,-154.414108,0.00012329,2]
[353195352,1739640661705,-154.4141,0.00012329,2]
[353195353,1739640661715,-151.0,0.00012329,2]
[353195354,1739640661724,-151.0,0.00012329,2]
[353195355,1739640661733,-151.0,0.00012329,2]
[353195356,1739640661744,-151.0,0.00012329,2]
[353195357,1739640661753,-151.0,0.00012329,2]
[353195358,1739640661762,-151.0,0.00012329,2]
[353195359,1739640661772,-151.0,0.00012329,2]
[353195360,1739640661781,-151.0,0.00012329,2]
[353195361,1739640661790,-199.775587,0.00012329,2]
[353195362,1739640661799,-151.229403,0.00012329,2]
[353195363,1739640661807,-1400.0,0.0001233,2]
[353195364,1739640661816,-1300.0,0.0001233,2]
[353195365,1739640661825,-500.0,0.0001233,2]
[353195366,1739640661834,-150.7432094,0.00012348,2]
[353195367,1739640661843,-280.88723074,0.00012352,2]
[353195368,1739640661852,-661.5,0.00012354,2]
[353195369,1739640661861,-522.73,0.00012354,2]
[353195370,1739640661870,-480.68,0.00012354,2]
[353195371,1739640661879,-500.0,0.00012354,2]
[353195372,1739640661888,-500.0,0.00012354,2]
[353195373,1739640661897,-528.90825303,0.00012354,2]
[353195374,1739640661906,-500.0,0.00012354,2]
[353195375,1739640661915,-500.0,0.00012354,2]
[353195376,1739640661925,-1073.26,0.00012354,2]
[353195377,1739640661934,-702.58,0.00012354,2]
[353195378,1739640661943,-500.0,0.00012354,2]
[353195379,1739640661952,-749.99,0.00012354,2]
[353195380,1739640661962,-180.896505,0.00012354,2]
[353195381,1739640661971,-500.0,0.00012354,2]
[353195382,1739640661980,-557.75,0.00012354,2]
[353195383,1739640661990,-826.89,0.00012354,2]
[353195384,1739640661998,-364.085208,0.00012354,2]
[353195385,1739640662007,-500.0,0.00012354,2]
[353195386,1739640662016,-551.39,0.00012354,2]
[353195387,1739640662025,-758.76,0.00012354,2]
[353195388,1739640662034,-574.22,0.00012354,2]
[353195389,1739640662043,-500.0,0.00012354,2]
[353195390,1739640662053,-664.12,0.00012354,2]
[353195391,1739640662062,-647.76,0.00012354,2]
[353195392,1739640662072,-500.0,0.00012354,2]
[353195393,1739640662081,-679.9,0.00012354,2]
[353195394,1739640662090,-500.0,0.00012354,2]
[353195395,1739640662099,-500.0,0.00012354,2]
[353195396,1739640662108,-1774.1,0.00012354,2]
[353195397,1739640662117,-500.0,0.00012354,2]
[353195398,1739640662126,-567.85,0.00012354,2]
[353195399,1739640662136,-536.13,0.00012354,2]
[353195400,1739640662150,-500.0,0.00012354,2]
[353195401,1739640662160,-810.11,0.00012354,2]
[353195402,1739640662169,-500.0,0.00012354,2]
[353195403,1739640662179,-1032.21,0.00012354,2]
[353195404,1739640662189,-299.05,0.00012354,2]
[353195405,1739640662199,-1501.05,0.00012354,2]
[353195406,1739640662208,-644.12,0.00012354,2]
[353195407,1739640662219,-500.0,0.00012354,2]
[353195408,1739640662229,-500.0,0.00012354,2]
[353195409,1739640662239,-701.46,0.00012354,2]
[353195410,1739640662249,-917.15,0.00012354,2]
[353195411,1739640662258,-506.75,0.00012354,2]
[353195412,1739640662267,-845.55,0.00012354,2]
[353195413,1739640662277,-500.0,0.00012354,2]
[353195414,1739640662286,-893.05,0.00012354,2]
[353195415,1739640662295,-558.04,0.00012354,2]
[353195416,1739640662305,-500.0,0.00012354,2]
[353195417,1739640662314,-500.0,0.00012354,2]
[353195418,1739640662324,-625.32,0.00012354,2]
[353195419,1739640662333,-1077.49,0.00012354,2]
[353195420,1739640662343,-500.0,0.00012354,2]
[353195421,1739640662352,-500.0,0.00012354,2]
[353195422,1739640662361,-833.02,0.00012354,2]
[353195423,1739640662371,-629.24,0.00012354,2]
[353195424,1739640662380,-1985.97,0.00012354,2]
[353195425,1739640662389,-500.0,0.00012355,2]
[353195426,1739640662398,-556.13,0.00012355,2]
[353195427,1739640662407,-500.0,0.00012355,2]
[353195428,1739640662416,-738.52,0.00012355,2]
[353195429,1739640662426,-340.64,0.00012355,2]
[353195430,1739640662435,-500.0,0.00012355,2]
[353195431,1739640662444,-500.0,0.00012355,2]
[353195432,1739640662453,-500.0,0.00012355,2]
[353195433,1739640662462,-500.0,0.00012355,2]
[353195434,1739640662471,-500.0,0.00012356,2]
[353195435,1739640662480,-172.124904,0.00012363,2]
[353195436,1739640662489,-571.48,0.00012368,2]
[353195437,1739640662499,-512.53,0.00012368,2]
[353195438,1739640662508,-500.0,0.00012368,2]
[353195439,1739640662518,-844.08,0.00012368,2]
[353195440,1739640662527,-678.77,0.00012368,2]
[353195441,1739640662537,-578.69,0.00012368,2]
[353195442,1739640662546,-836.8,0.00012368,2]
[353195443,1739640662555,-502.58,0.00012368,2]
[353195444,1739640662564,-500.0,0.00012368,2]
[353195445,1739640662573,-830.02,0.00012368,2]
[353195446,1739640662583,-932.26,0.00012368,2]
[353195447,1739640662592,-651.91,0.00012368,2]
[353195448,1739640662601,-521.69,0.00012368,2]
[353195449,1739640662611,-2314.63,0.00012368,2]
[353195450,1739640662621,-500.0,0.00012368,2]
[353195451,1739640662630,-500.0,0.00012368,2]
[353195452,1739640662640,-1694.07,0.00012368,2]
[353195453,1739640662649,-403.79337358,0.00012368,2]
[353195454,1739640662658,-805.43,0.00012368,2]
[353195455,1739640662667,-150.0,0.00012421,2]
[353195456,1739640662676,-150.0,0.00012421,2]
[353195457,1739640662685,-661.5,0.00012436,2]
[353195458,1739640662694,-522.73,0.00012436,2]
[353195459,1739640662703,-500.0,0.00012436,2]
[353195460,1739640662713,-500.0,0.00012436,2]
[353195461,1739640662722,-500.0,0.00012436,2]
[353195462,1739640662731,-325.73,0.00012436,2]
[353195463,1739640662740,-1073.26,0.00012436,2]
[353195464,1739640662750,-702.58,0.00012436,2]
[353195465,1739640662759,-500.0,0.00012436,2]
[353195466,1739640662768,-749.99,0.00012436,2]
[353195467,1739640662778,-180.896505,0.00012436,2]
[353195468,1739640662787,-500.0,0.00012436,2]
[353195469,1739640662797,-557.75,0.00012436,2]
[353195470,1739640662806,-826.89,0.00012436,2]
[353195471,1739640662815,-364.085208,0.00012436,2]
[353195472,1739640662824,-500.0,0.00012436,2]
[353195473,1739640662834,-551.39,0.00012436,2]
[353195474,1739640662843,-758.76,0.00012436,2]
[353195475,1739640662852,-574.22,0.00012436,2]
[353195476,1739640662861,-200.27,0.00012436,2]
[353195477,1739640662871,-664.12,0.00012436,2]
[353195478,1739640662881,-647.76,0.00012436,2]
[353195479,1739640662890,-500.0,0.00012436,2]
[353195480,1739640662899,-679.9,0.00012436,2]
[353195481,1739640662908,-500.0,0.00012436,2]
[353195482,1739640662918,-500.0,0.00012436,2]
[353195483,1739640662927,-1774.1,0.00012436,2]
[353195484,1739640662936,-500.0,0.00012436,2]
[353195485,1739640662945,-567.85,0.00012436,2]
[353195486,1739640662955,-536.13,0.00012436,2]
[353195487,1739640662964,-500.0,0.00012436,2]
[353195488,1739640662974,-810.11,0.00012436,2]
[353195489,1739640662983,-500.0,0.00012436,2]
[353195490,1739640662994,-1032.21,0.00012436,2]
[353195491,1739640663004,-1501.05,0.00012436,2]
[353195492,1739640663014,-644.12,0.00012436,2]
[353195493,1739640663024,-500.0,0.00012436,2]
[353195494,1739640663034,-500.0,0.00012436,2]
[353195495,1739640663043,-701.46,0.00012436,2]
[353195496,1739640663052,-917.15,0.00012436,2]
[353195497,1739640663062,-506.75,0.00012436,2]
[353195498,1739640663072,-845.55,0.00012436,2]
[353195499,1739640663082,-500.0,0.00012436,2]
[353195500,1739640663091,-893.05,0.00012436,2]
[353195501,1739640663101,-231.84119773,0.00012436,2]
[353195502,1739640663111,-344.0,0.00012436,2]
[353195503,1739640663120,-625.32,0.00012436,2]
[353195504,1739640663130,-1077.49,0.00012436,2]
[353195505,1739640663141,-506.31967851,0.00012436,2]
[353195506,1739640663152,-500.0,0.00012436,2]
[353195507,1739640663162,-833.02,0.00012436,2]
[353195508,1739640663172,-629.24,0.00012436,2]
[353195509,1739640663182,-1985.97,0.00012436,2]
[353195510,1739640663192,-500.0,0.00012437,2]
[353195511,1739640663201,-468.4,0.00012437,2]
[353195512,1739640663211,-738.52,0.00012437,2]
[353195513,1739640663222,-500.0,0.00012437,2]
[353195514,1739640663231,-373.72604177,0.00012437,2]
[353195515,1739640663241,-500.0,0.00012437,2]
[353195516,1739640663250,-500.0,0.00012437,2]
[353195517,1739640663260,-500.0,0.00012438,2]
[353195518,1739640663269,-571.48,0.0001245,2]
[353195519,1739640663279,-512.53,0.0001245,2]
[353195520,1739640663289,-500.0,0.0001245,2]
[353195521,1739640663299,-844.08,0.0001245,2]
[353195522,1739640663309,-678.77,0.0001245,2]
[353195523,1739640663320,-578.69,0.0001245,2]
[353195524,1739640663330,-836.8,0.0001245,2]
[353195525,1739640663339,-502.58,0.0001245,2]
[353195526,1739640663349,-500.0,0.0001245,2]
[353195527,1739640663358,-830.02,0.0001245,2]
[353195528,1739640663367,-932.26,0.0001245,2]
[353195529,1739640663377,-651.91,0.0001245,2]
[353195530,1739640663542,-521.69,0.0001245,2]
[353195531,1739640663552,-2314.63,0.0001245,2]
[353195532,1739640663562,-500.0,0.0001245,2]
[353195533,1739640663572,-500.0,0.0001245,2]
[353195534,1739640663582,-1694.07,0.0001245,2]
[353195535,1739640663592,-805.43,0.0001245,2]
[353195536,1739640663601,-1000.0,0.0001246,2]
[353195537,1739640663611,-10133.62755885,0.00012488,2]
[353195538,1739640663620,-1350.2715651,0.00012511,2]
[353195539,1739640663630,-661.5,0.00012518,2]
[353195540,1739640663639,-522.73,0.00012518,2]
[353195541,1739640663649,-500.0,0.00012518,2]
[353195542,1739640663659,-500.0,0.00012518,2]
[353195543,1739640663668,-279.63208121,0.00012518,2]
[353195544,1739640663679,-1073.26,0.00012518,2]
[353195545,1739640663688,-702.58,0.00012518,2]
[353195546,1739640663698,-500.0,0.00012518,2]
[353195547,1739640663708,-749.99,0.00012518,2]
[353195548,1739640663718,-180.896505,0.00012518,2]
[353195549,1739640663728,-500.0,0.00012518,2]
[353195550,1739640663738,-557.75,0.00012518,2]
[353195551,1739640663750,-826.89,0.00012518,2]
[353195552,1739640663760,-364.085208,0.00012518,2]
[353195553,1739640663770,-500.0,0.00012518,2]
[353195554,1739640663779,-551.39,0.00012518,2]
[353195555,1739640663788,-758.76,0.00012518,2]
[353195556,1739640663798,-574.22,0.00012518,2]
[353195557,1739640663808,-664.12,0.00012518,2]
[353195558,1739640663818,-647.76,0.00012518,2]
[353195559,1739640663828,-500.0,0.00012518,2]
[353195560,1739640663838,-679.9,0.00012518,2]
[353195561,1739640663847,-500.0,0.00012518,2]
[353195562,1739640663856,-500.0,0.00012518,2]
[353195563,1739640663865,-1774.1,0.00012518,2]
[353195564,1739640663875,-500.0,0.00012518,2]
[353195565,1739640663884,-567.85,0.00012518,2]
[353195566,1739640663895,-536.13,0.00012518,2]
[353195567,1739640663904,-500.0,0.00012518,2]
[353195568,1739640663914,-810.11,0.00012518,2]
[353195569,1739640663924,-305.02,0.00012518,2]
[353195570,1739640663935,-1032.21,0.00012518,2]
[353195571,1739640663945,-1501.05,0.00012518,2]
[353195572,1739640663955,-644.12,0.00012518,2]
[353195573,1739640663965,-500.0,0.00012518,2]
[353195574,1739640663975,-500.0,0.00012518,2]
[353195575,1739640663984,-701.46,0.00012518,2]
[353195576,1739640663996,-917.15,0.00012518,2]
[353195577,1739640664006,-506.75,0.00012518,2]
[353195578,1739640664016,-845.55,0.00012518,2]
[353195579,1739640664026,-500.0,0.00012518,2]
[353195580,1739640664035,-893.05,0.00012518,2]
[353195581,1739640664045,-625.32,0.00012518,2]
[353195582,1739640664054,-1077.49,0.00012518,2]
[353195583,1739640664064,-500.0,0.00012518,2]
[353195584,1739640664074,-833.02,0.00012518,2]
[353195585,1739640664084,-629.24,0.00012518,2]
[353195586,1739640664093,-1985.97,0.00012518,2]
[353195587,1739640664103,-216.0,0.0001252,2]
[353195588,1739640664113,-500.0,0.0001252,2]
[353195589,1739640664122,-738.52,0.0001252,2]
[353195590,1739640664132,-500.0,0.0001252,2]
[353195591,1739640664144,-500.0,0.0001252,2]
[353195592,1739640664154,-500.0,0.0001252,2]
[353195593,1739640664163,-500.0,0.0001252,2]
[353195594,1739640664173,-571.48,0.00012532,2]
[353195595,1739640664182,-512.53,0.00012532,2]
[353195596,1739640664192,-500.0,0.00012532,2]
[353195597,1739640664202,-844.08,0.00012532,2]
[353195598,1739640664212,-678.77,0.00012532,2]
[353195599,1739640664221,-578.69,0.00012532,2]
[353195600,1739640664233,-836.8,0.00012532,2]
[353195601,1739640664244,-502.58,0.00012532,2]
[353195602,1739640664254,-500.0,0.00012532,2]
[353195603,1739640664263,-830.02,0.00012532,2]
[353195604,1739640664273,-932.26,0.00012532,2]
[353195605,1739640664283,-651.91,0.00012532,2]
[353195606,1739640664293,-521.69,0.00012532,2]
[353195607,1739640664303,-2314.63,0.00012532,2]
[353195608,1739640664312,-500.0,0.00012532,2]
[353195609,1739640664322,-500.0,0.00012532,2]
[353195610,1739640664331,-1694.07,0.00012532,2]
[353195611,1739640664341,-805.43,0.00012532,2]
[353195612,1739640664351,-3069.78032547,0.00012534,2]
[353195613,1739640664360,-280.88723074,0.00012556,2]
[353195614,1739640664370,-150.0,0.0001258,2]
[353195615,1739640664380,-269.46424909,0.0001259,2]
[353195616,1739640664390,-661.5,0.00012601,2]
[353195617,1739640664399,-522.73,0.00012601,2]
[353195618,1739640664409,-450.26871329,0.00012601,2]
[353195619,1739640664419,-500.0,0.00012601,2]
[353195620,1739640664429,-1073.26,0.00012601,2]
[353195621,1739640664439,-702.58,0.00012601,2]
[353195622,1739640664450,-500.0,0.00012601,2]
[353195623,1739640664459,-749.99,0.00012601,2]
[353195624,1739640664469,-180.896505,0.00012601,2]
[353195625,1739640664480,-500.0,0.00012601,2]
[353195626,1739640664490,-557.75,0.00012601,2]
[353195627,1739640664499,-826.89,0.00012601,2]
[353195628,1739640664509,-364.085208,0.00012601,2]
[353195629,1739640664519,-500.0,0.00012601,2]
[353195630,1739640664528,-551.39,0.00012601,2]
[353195631,1739640664538,-758.76,0.00012601,2]
[353195632,1739640664547,-574.22,0.00012601,2]
[353195633,1739640664558,-664.12,0.00012601,2]
[353195634,1739640664567,-647.76,0.00012601,2]
[353195635,1739640664577,-500.0,0.00012601,2]
[353195636,1739640664586,-679.9,0.00012601,2]
[353195637,1739640664596,-500.0,0.00012601,2]
[353195638,1739640664605,-500.0,0.00012601,2]
[353195639,1739640664614,-1774.1,0.00012601,2]
[353195640,1739640664624,-500.0,0.00012601,2]
[353195641,1739640664633,-567.85,0.00012601,2]
[353195642,1739640664644,-536.13,0.00012601,2]
[353195643,1739640664654,-500.0,0.00012601,2]
[353195644,1739640664663,-810.11,0.00012601,2]
[353195645,1739640664672,-1032.21,0.00012601,2]
[353195646,1739640664682,-1501.05,0.00012601,2]
[353195647,1739640664692,-644.12,0.00012601,2]
[353195648,1739640664701,-457.37069988,0.00012601,2]
[353195649,1739640664711,-500.0,0.00012601,2]
[353195650,1739640664720,-701.46,0.00012601,2]
[353195651,1739640664729,-917.15,0.00012601,2]
[353195652,1739640664739,-506.75,0.00012601,2]
[353195653,1739640664749,-845.55,0.00012601,2]
[353195654,1739640664758,-156.13,0.00012601,2]
[353195655,1739640664768,-893.05,0.00012601,2]
[353195656,1739640664777,-625.32,0.00012601,2]
[353195657,1739640664787,-1077.49,0.00012601,2]
[353195658,1739640664797,-500.0,0.00012601,2]
[353195659,1739640664806,-833.02,0.00012601,2]
[353195660,1739640664816,-629.24,0.00012601,2]
[353195661,1739640664825,-1985.97,0.00012601,2]
[353195662,1739640664834,-500.0,0.00012602,2]
[353195663,1739640664844,-738.52,0.00012602,2]
[353195664,1739640664853,-500.0,0.00012602,2]
[353195665,1739640664863,-373.38,0.00012602,2]
[353195666,1739640664873,-500.0,0.00012602,2]
[353195667,1739640664882,-500.0,0.00012602,2]
[353195668,1739640664892,-10670.67,0.00012603,2]
[353195669,1739640664902,-571.48,0.00012614,2]
[353195670,1739640664912,-512.53,0.00012614,2]
[353195671,1739640664922,-500.0,0.00012614,2]
[353195672,1739640664932,-844.08,0.00012614,2]
[353195673,1739640664942,-678.77,0.00012614,2]
[353195674,1739640664951,-578.69,0.00012614,2]
[353195675,1739640664960,-836.8,0.00012614,2]
[353195676,1739640664970,-502.58,0.00012614,2]
[353195677,1739640664980,-500.0,0.00012614,2]
[353195678,1739640664989,-830.02,0.00012614,2]
[353195679,1739640665002,-932.26,0.00012614,2]
[353195680,1739640665012,-651.91,0.00012614,2]
[353195681,1739640665022,-521.69,0.00012614,2]
[353195682,1739640665031,-2314.63,0.00012614,2]
[353195683,1739640665041,-379.76,0.00012614,2]
[353195684,1739640665050,-500.0,0.00012614,2]
[353195685,1739640665060,-1694.07,0.00012614,2]
[353195686,1739640665070,-805.43,0.00012614,2]
[353195687,1739640665079,-172.124904,0.00012665,2]
[353195688,1739640665089,-661.5,0.00012683,2]
[353195689,1739640665098,-522.73,0.00012683,2]
[353195690,1739640665108,-537.03,0.00012683,2]
[353195691,1739640665118,-1073.26,0.00012683,2]
[353195692,1739640665127,-702.58,0.00012683,2]
[353195693,1739640665138,-500.0,0.00012683,2]
[353195694,1739640665153,-749.99,0.00012683,2]
[353195695,1739640665162,-180.896505,0.00012683,2]
[353195696,1739640665171,-500.0,0.00012683,2]
[353195697,1739640665180,-557.75,0.00012683,2]
[353195698,1739640665190,-826.89,0.00012683,2]
[353195699,1739640665199,-364.085208,0.00012683,2]
[353195700,1739640665208,-622.01,0.00012683,2]
[353195701,1739640665218,-551.39,0.00012683,2]
[353195702,1739640665228,-758.76,0.00012683,2]
[353195703,1739640665237,-574.22,0.00012683,2]
[353195704,1739640665249,-664.12,0.00012683,2]
[353195705,1739640665258,-647.76,0.00012683,2]
[353195706,1739640665268,-500.0,0.00012683,2]
[353195707,1739640665277,-679.9,0.00012683,2]
[353195708,1739640665286,-437.87,0.00012683,2]
[353195709,1739640665296,-500.0,0.00012683,2]
[353195710,1739640665305,-1774.1,0.00012683,2]
[353195711,1739640665314,-500.0,0.00012683,2]
[353195712,1739640665323,-567.85,0.00012683,2]
[353195713,1739640665333,-536.13,0.00012683,2]
[353195714,1739640665342,-500.0,0.00012683,2]
[353195715,1739640665351,-810.11,0.00012683,2]
[353195716,1739640665362,-1032.21,0.00012683,2]
[353195717,1739640665371,-1501.05,0.00012683,2]
[353195718,1739640665380,-644.12,0.00012683,2]
[353195719,1739640665390,-397.50575114,0.00012683,2]
[353195720,1739640665399,-701.46,0.00012683,2]
[353195721,1739640665408,-917.15,0.00012683,2]
[353195722,1739640665418,-506.75,0.00012683,2]
[353195723,1739640665427,-845.55,0.00012683,2]
[353195724,1739640665436,-151.0,0.00012683,2]
[353195725,1739640665445,-893.05,0.00012683,2]
[353195726,1739640665455,-151.0,0.00012683,2]
[353195727,1739640665464,-625.32,0.00012683,2]
[353195728,1739640665474,-1077.49,0.00012683,2]
[353195729,1739640665483,-500.0,0.00012683,2]
[353195730,1739640665492,-833.02,0.00012683,2]
[353195731,1739640665502,-204.4037,0.00012683,2]
[353195732,1739640665511,-629.24,0.00012683,2]
[353195733,1739640665521,-204.4037,0.00012683,2]